[Event "TOP 12 FEMININ 2022 - Phase 1"]
[Site "MULHOUSE, France"]
[Date "2022.04.08"]
[Round "2.1"]
[White "CRAMLING MON, Pia"]
[Black "BATSIASHVILI JUV, Nino"]
[Result "1-0"]
[TimeControl "90 min +30 secondes par coup"]
[WhiteElo "2454"]
[BlackElo "2463"]

1. Nf3 {[%clk 01:30:56]} {[%emt 00:00:03]} d5 {[%clk 01:30:55]} {[%emt
00:00:06]} 2. d4 {[%clk 01:31:18]} {[%emt 00:00:08]} e6 {[%clk 01:30:39]}
{[%emt 00:00:46]} 3. c4 {[%clk 01:26:11]} {[%emt 00:05:37]} a6 {[%clk
01:29:48]} {[%emt 00:01:21]} 4. cxd5 {[%clk 01:20:54]} {[%emt 00:05:46]} exd5
{[%clk 01:30:14]} {[%emt 00:00:05]} 5. Nc3 {[%clk 01:21:18]} {[%emt 00:00:06]}
Nf6 {[%clk 01:29:44]} {[%emt 00:01:00]} 6. Bg5 {[%clk 01:20:26]} {[%emt
00:01:22]} Be6 {[%clk 01:30:01]} {[%emt 00:00:12]} 7. Bxf6 {[%clk 01:20:25]}
{[%emt 00:00:31]} Qxf6 {[%clk 01:30:27]} {[%emt 00:00:05]} 8. Qb3 {[%clk
01:20:46]} {[%emt 00:00:09]} Ra7 {[%clk 01:30:41]} {[%emt 00:00:16]} 9. h4
{[%clk 01:19:09]} {[%emt 00:02:07]} h6 {[%clk 01:30:16]} {[%emt 00:00:56]} 10.
g3 {[%clk 01:19:13]} {[%emt 00:00:25]} Qd8 {[%clk 01:29:26]} {[%emt 00:01:20]}
11. Bh3 {[%clk 01:17:56]} {[%emt 00:01:47]} Bxh3 {[%clk 01:29:42]} {[%emt
00:00:15]} 12. Rxh3 {[%clk 01:18:21]} {[%emt 00:00:04]} c6 {[%clk 01:30:01]}
{[%emt 00:00:11]} 13. e4 {[%clk 01:13:41]} {[%emt 00:05:09]} dxe4 {[%clk
01:23:25]} {[%emt 00:07:07]} 14. Ne5 {[%clk 01:13:38]} {[%emt 00:00:32]} b5
{[%clk 01:23:12]} {[%emt 00:00:44]} 15. O-O-O {[%clk 01:13:17]} {[%emt
00:00:50]} Bd6 {[%clk 00:56:47]} {[%emt 00:26:56]} 16. Nxe4 {[%clk 01:12:46]}
{[%emt 00:01:01]} O-O {[%clk 00:53:49]} {[%emt 00:03:29]} 17. f4 {[%clk
01:07:57]} {[%emt 00:05:18]} Qc8 {[%clk 00:31:52]} {[%emt 00:22:27]} 18. g4
{[%clk 00:39:34]} {[%emt 00:28:51]} Rd8 {[%clk 00:31:34]} {[%emt 00:00:50]} 19.
Rc3 {[%clk 00:37:19]} {[%emt 00:02:45]} Rc7 {[%clk 00:23:14]} {[%emt 00:08:50]}
20. Kb1 {[%clk 00:35:56]} {[%emt 00:01:51]} a5 {[%clk 00:18:24]} {[%emt
00:05:22]} 21. Qc2 {[%clk 00:29:20]} {[%emt 00:07:04]} Bxe5 {[%clk 00:13:43]}
{[%emt 00:05:13]} 22. dxe5 {[%clk 00:29:09]} {[%emt 00:00:41]} Na6 {[%clk
00:13:25]} {[%emt 00:00:48]} 23. Rd6 {[%clk 00:15:09]} {[%emt 00:14:29]} Nb4
{[%clk 00:11:36]} {[%emt 00:02:21]} 24. Qd1 {[%clk 00:14:56]} {[%emt 00:00:41]}
Nd5 {[%clk 00:09:04]} {[%emt 00:03:03]} 25. Rc5 {[%clk 00:14:24]} {[%emt
00:01:02]} Re8 {[%clk 00:05:57]} {[%emt 00:03:37]} 26. Qf3 {[%clk 00:11:41]}
{[%emt 00:03:12]} Re6 {[%clk 00:02:20]} {[%emt 00:04:08]} 27. Nc3 {[%clk
00:09:25]} {[%emt 00:02:45]} Nxc3+ {[%clk 00:01:04]} {[%emt 00:01:47]} 28. Qxc3
{[%clk 00:08:59]} {[%emt 00:00:55]} b4 {[%clk 00:00:54]} {[%emt 00:00:40]} 29.
Qc4 {[%clk 00:07:38]} {[%emt 00:01:48]} Re8 {[%clk 00:01:17]} {[%emt 00:00:11]}
30. f5 {[%clk 00:04:39]} {[%emt 00:03:29]} Qa8 {[%clk 00:00:43]} {[%emt
00:01:03]} 31. f6 {[%clk 00:04:08]} {[%emt 00:01:01]} gxf6 {[%clk 00:00:55]}
{[%emt 00:00:19]} 32. exf6 {[%clk 00:03:12]} {[%emt 00:01:26]} Re1+ {[%clk
00:01:00]} {[%emt 00:00:25]} 33. Kc2 {[%clk 00:03:40]} {[%emt 00:00:01]} Qe8
{[%clk 00:01:19]} {[%emt 00:00:12]} 34. Qd3 {[%clk 00:02:25]} {[%emt 00:01:44]}
Qe2+ {[%clk 00:00:36]} {[%emt 00:01:14]} 35. Qxe2 {[%clk 00:02:38]} {[%emt
00:00:17]} Rxe2+ {[%clk 00:01:05]} {[%emt 00:00:01]} 36. Kb3 {[%clk 00:02:54]}
{[%emt 00:00:12]} a4+ {[%clk 00:01:31]} {[%emt 00:00:06]} 37. Kxb4 {[%clk
00:02:12]} {[%emt 00:01:11]} Rb7+ {[%clk 00:01:17]} {[%emt 00:00:45]} 38. Kxa4
{[%clk 00:01:40]} {[%emt 00:01:02]} Rexb2 {[%clk 00:01:40]} {[%emt 00:00:08]}
39. a3 {[%clk 00:01:52]} {[%emt 00:00:17]} R2b6 {[%clk 00:00:35]} {[%emt
00:01:35]} 40. Ra5 {[%clk 00:01:42]} {[%emt 00:00:38]} Kh7 {[%clk 00:00:41]}
{[%emt 00:00:26]} 41. h5 {[%clk 00:01:35]} {[%emt 00:00:37]} c5 {[%clk
00:00:43]} {[%emt 00:00:28]} 42. Rxb6 {[%clk 00:01:53]} {[%emt 00:00:12]} Rxb6
{[%clk 00:01:13]} 43. Rxc5 {[%clk 00:01:47]} {[%emt 00:00:36]} Rxf6 {[%clk
00:01:41]} {[%emt 00:00:03]} 44. Kb5 {[%clk 00:01:58]} {[%emt 00:00:16]} Rf3
{[%clk 00:02:03]} {[%emt 00:00:11]} 45. a4 {[%clk 00:01:54]} {[%emt 00:00:32]}
Rb3+ {[%clk 00:02:18]} {[%emt 00:00:11]} 46. Ka5 {[%clk 00:02:17]} {[%emt
00:00:11]} Kg7 {[%clk 00:02:08]} {[%emt 00:00:41]} 47. Rf5 {[%clk 00:02:37]}
{[%emt 00:00:09]} Rb1 {[%clk 00:00:32]} {[%emt 00:02:07]} 48. Rf4 {[%clk
00:02:48]} {[%emt 00:00:18]} Rb2 {[%clk 00:00:39]} {[%emt 00:00:25]} 49. Ka6
{[%clk 00:02:27]} {[%emt 00:00:49]} Kf8 {[%clk 00:00:33]} {[%emt 00:00:38]} 50.
a5 {[%clk 00:02:37]} {[%emt 00:00:18]} Ke7 {[%clk 00:01:01]} {[%emt 00:00:02]}
51. Ka7 {[%clk 00:02:48]} {[%emt 00:00:18]} Ke6 {[%clk 00:01:08]} {[%emt
00:00:24]} 52. a6 {[%clk 00:03:07]} {[%emt 00:00:11]} f6 {[%clk 00:01:33]}
{[%emt 00:00:06]} 53. Rc4 {[%clk 00:03:25]} {[%emt 00:00:11]} Kd5 {[%clk
00:01:38]} {[%emt 00:00:26]} 54. Rc7 {[%clk 00:03:32]} {[%emt 00:00:22]} Rg2
{[%clk 00:00:59]} {[%emt 00:01:09]} 55. Kb8 {[%clk 00:02:24]} {[%emt 00:01:37]}
Rxg4 {[%clk 00:01:01]} {[%emt 00:00:30]} 56. a7 {[%clk 00:02:48]} {[%emt
00:00:05]} Rb4+ {[%clk 00:01:18]} {[%emt 00:00:13]} 57. Rb7 {[%clk 00:03:09]}
{[%emt 00:00:09]} Ra4 {[%clk 00:01:46]} {[%emt 00:00:03]} 58. a8=Q {[%clk
00:03:30]} {[%emt 00:00:08]} Rxa8+ {[%clk 00:02:14]} {[%emt 00:00:03]} 59. Kxa8
{[%clk 00:03:53]} {[%emt 00:00:07]} 1-0

[Event "TOP 12 FEMININ 2022 - Phase 1"]
[Site "MULHOUSE, France"]
[Date "2022.04.08"]
[Round "2.2"]
[White "FRETEL JUV, Liza"]
[Black "SKRIPCHENKO MON, Almira"]
[Result "0-1"]
[TimeControl "90 min +30 secondes par coup"]
[WhiteElo "1946"]
[BlackElo "2395"]

1. e4 {[%clk 01:30:56]} {[%emt 00:00:03]} d6 {[%clk 01:30:25]} {[%emt
00:00:35]} 2. d4 {[%clk 01:30:59]} {[%emt 00:00:28]} Nf6 {[%clk 01:30:49]}
{[%emt 00:00:04]} 3. Nc3 {[%clk 01:31:02]} {[%emt 00:00:28]} c6 {[%clk
01:31:04]} {[%emt 00:00:15]} 4. Be3 {[%clk 01:27:03]} {[%emt 00:04:29]} Nbd7
{[%clk 01:30:15]} {[%emt 00:01:19]} 5. Nf3 {[%clk 01:26:09]} {[%emt 00:01:24]}
e5 {[%clk 01:30:11]} {[%emt 00:00:33]} 6. Bc4 {[%clk 01:25:04]} {[%emt
00:01:37]} Be7 {[%clk 01:29:01]} {[%emt 00:01:40]} 7. Bb3 {[%clk 01:22:48]}
{[%emt 00:02:46]} O-O {[%clk 01:29:17]} {[%emt 00:00:13]} 8. h3 {[%clk
01:20:27]} {[%emt 00:02:52]} b5 {[%clk 01:28:46]} {[%emt 00:01:01]} 9. a3
{[%clk 01:17:15]} {[%emt 00:03:43]} Bb7 {[%clk 01:28:16]} {[%emt 00:00:58]} 10.
Qd3 {[%clk 01:15:06]} {[%emt 00:02:39]} a6 {[%clk 01:25:57]} {[%emt 00:02:49]}
11. g4 {[%clk 01:12:38]} {[%emt 00:02:58]} Qc7 {[%clk 01:23:15]} {[%emt
00:03:11]} 12. g5 {[%clk 01:11:58]} {[%emt 00:01:11]} Nh5 {[%clk 01:23:01]}
{[%emt 00:00:43]} 13. Nh4 {[%clk 01:08:34]} {[%emt 00:03:55]} g6 {[%clk
01:23:13]} {[%emt 00:00:18]} 14. Qe2 {[%clk 01:07:55]} {[%emt 00:01:10]} exd4
{[%clk 01:20:37]} {[%emt 00:03:05]} 15. Bxd4 {[%clk 01:08:09]} {[%emt
00:00:17]} Bxg5 {[%clk 01:20:13]} {[%emt 00:00:53]} 16. Rg1 {[%clk 01:07:53]}
{[%emt 00:00:46]} Qd8 {[%clk 01:17:59]} {[%emt 00:02:44]} 17. Nf5 {[%clk
00:54:27]} {[%emt 00:13:56]} Nf4 {[%clk 01:07:08]} {[%emt 00:11:21]} 18. Qg4
{[%clk 00:53:45]} {[%emt 00:01:11]} c5 {[%clk 01:06:57]} {[%emt 00:00:42]} 19.
Qxg5 {[%clk 00:34:37]} {[%emt 00:19:39]} Qxg5 {[%clk 01:07:05]} {[%emt
00:00:21]} 20. Rxg5 {[%clk 00:35:03]} {[%emt 00:00:05]} cxd4 {[%clk 01:07:27]}
{[%emt 00:00:07]} 21. Nxd4 {[%clk 00:34:28]} {[%emt 00:01:05]} Nc5 {[%clk
01:04:30]} {[%emt 00:03:27]} 22. Ba2 {[%clk 00:29:46]} {[%emt 00:05:13]} Nxh3
{[%clk 00:59:29]} {[%emt 00:05:30]} 23. Rg3 {[%clk 00:25:54]} {[%emt 00:04:23]}
Nf4 {[%clk 00:56:49]} {[%emt 00:03:09]} 24. O-O-O {[%clk 00:25:40]} {[%emt
00:00:45]} Nh5 {[%clk 00:52:54]} {[%emt 00:04:23]} 25. Re3 {[%clk 00:23:44]}
{[%emt 00:02:27]} Rfe8 {[%clk 00:52:26]} {[%emt 00:00:59]} 26. f3 {[%clk
00:22:51]} {[%emt 00:01:23]} Rac8 {[%clk 00:47:26]} {[%emt 00:05:29]} 27. b4
{[%clk 00:21:30]} {[%emt 00:01:51]} Nd7 {[%clk 00:45:52]} {[%emt 00:02:03]} 28.
Ncxb5 {[%clk 00:18:13]} {[%emt 00:03:48]} axb5 {[%clk 00:42:30]} {[%emt
00:03:52]} 29. Nxb5 {[%clk 00:18:39]} {[%emt 00:00:04]} Rb8 {[%clk 00:33:47]}
{[%emt 00:09:12]} 30. Nxd6 {[%clk 00:18:52]} {[%emt 00:00:19]} Re7 {[%clk
00:34:04]} {[%emt 00:00:13]} 31. Nxf7 {[%clk 00:18:47]} {[%emt 00:00:35]} Kg7
{[%clk 00:34:13]} {[%emt 00:00:20]} 32. e5 {[%clk 00:18:19]} {[%emt 00:00:58]}
Nf8 {[%clk 00:30:53]} {[%emt 00:03:49]} 33. e6 {[%clk 00:14:44]} {[%emt
00:04:06]} Nf4 {[%clk 00:27:46]} {[%emt 00:03:36]} 34. Nd8 {[%clk 00:12:38]}
{[%emt 00:02:37]} h5 {[%clk 00:22:48]} {[%emt 00:05:28]} 35. a4 {[%clk
00:10:12]} {[%emt 00:02:56]} h4 {[%clk 00:20:15]} {[%emt 00:03:02]} 36. b5
{[%clk 00:09:05]} {[%emt 00:01:38]} Ba8 {[%clk 00:19:55]} {[%emt 00:00:50]} 37.
Rd4 {[%clk 00:06:26]} {[%emt 00:03:09]} g5 {[%clk 00:18:19]} {[%emt 00:02:05]}
38. Rd6 {[%clk 00:05:28]} {[%emt 00:01:29]} h3 {[%clk 00:18:19]} {[%emt
00:00:30]} 39. Bc4 {[%clk 00:04:19]} {[%emt 00:01:39]} h2 {[%clk 00:16:48]}
{[%emt 00:02:01]} 40. Re1 {[%clk 00:04:14]} {[%emt 00:00:35]} Bxf3 {[%clk
00:16:44]} {[%emt 00:00:34]} 41. Nc6 {[%clk 00:04:41]} {[%emt 00:00:04]} Bxc6
{[%clk 00:16:13]} {[%emt 00:01:01]} 42. bxc6 {[%clk 00:04:35]} {[%emt
00:00:36]} g4 {[%clk 00:16:00]} {[%emt 00:00:42]} 43. Rd4 {[%clk 00:04:29]}
{[%emt 00:00:37]} N8g6 {[%clk 00:16:20]} {[%emt 00:00:10]} 44. Bd3 {[%clk
00:03:17]} {[%emt 00:01:42]} Rxe6 {[%clk 00:14:05]} {[%emt 00:02:45]} 45. Rh1
{[%clk 00:02:27]} {[%emt 00:01:20]} g3 {[%clk 00:12:46]} {[%emt 00:01:49]} 46.
Rd7+ {[%clk 00:01:22]} {[%emt 00:01:35]} Kf6 {[%clk 00:13:03]} {[%emt
00:00:12]} 47. Bf1 {[%clk 00:01:36]} {[%emt 00:00:17]} Rxc6 {[%clk 00:13:00]}
{[%emt 00:00:33]} 48. Rd2 {[%clk 00:00:55]} {[%emt 00:01:10]} Re6 {[%clk
00:11:26]} {[%emt 00:02:04]} 49. c4 {[%clk 00:00:31]} {[%emt 00:00:55]} Ra8
{[%clk 00:11:11]} {[%emt 00:00:44]} 50. Ra2 {[%clk 00:00:50]} {[%emt 00:00:11]}
Re1+ {[%clk 00:11:21]} {[%emt 00:00:20]} 51. Kd2 {[%clk 00:01:12]} {[%emt
00:00:08]} Rxf1 {[%clk 00:11:03]} {[%emt 00:00:48]} 52. Rxf1 {[%clk 00:01:36]}
{[%emt 00:00:06]} g2 {[%clk 00:11:29]} {[%emt 00:00:03]} 53. Raa1 {[%clk
00:01:50]} {[%emt 00:00:17]} Rxa4 {[%clk 00:11:46]} {[%emt 00:00:14]} 54. Rab1
{[%clk 00:02:09]} {[%emt 00:00:11]} gxf1=Q {[%clk 00:09:04]} {[%emt 00:03:10]}
55. Rxf1 {[%clk 00:02:33]} {[%emt 00:00:07]} Kg5 {[%clk 00:09:10]} {[%emt
00:00:24]} 56. Ke3 {[%clk 00:01:52]} {[%emt 00:01:12]} Kg4 {[%clk 00:09:22]}
{[%emt 00:00:16]} 57. c5 {[%clk 00:01:18]} {[%emt 00:01:05]} Rc4 {[%clk
00:09:38]} {[%emt 00:00:14]} 58. Rb1 {[%clk 00:01:23]} {[%emt 00:00:26]} Kg3
{[%clk 00:09:36]} {[%emt 00:00:31]} 59. c6 {[%clk 00:01:30]} {[%emt 00:00:24]}
Rxc6 {[%clk 00:09:28]} {[%emt 00:00:38]} 60. Ke4 {[%clk 00:01:44]} {[%emt
00:00:14]} Re6+ {[%clk 00:09:41]} {[%emt 00:00:17]} 61. Kf5 {[%clk 00:01:28]}
{[%emt 00:00:47]} Kg2 {[%clk 00:09:27]} {[%emt 00:00:43]} 62. Rb3 {[%clk
00:00:33]} {[%emt 00:01:27]} h1=Q {[%clk 00:08:30]} {[%emt 00:01:25]} 0-1

[Event "TOP 12 FEMININ 2022 - Phase 1"]
[Site "MULHOUSE, France"]
[Date "2022.04.08"]
[Round "2.3"]
[White "DORNBUSCH MON, Tatiana"]
[Black "SALVADOR JUV, Lucie"]
[Result "1-0"]
[TimeControl "90 min +30 secondes par coup"]
[WhiteElo "2245"]
[BlackElo "1979"]

1. d4 {[%clk 01:30:44]} {[%emt 00:00:15]} g6 {[%clk 01:29:10]} {[%emt
00:01:50]} 2. Nf3 {[%clk 01:30:18]} {[%emt 00:00:56]} Bg7 {[%clk 01:29:35]}
{[%emt 00:00:06]} 3. c4 {[%clk 01:29:47]} {[%emt 00:01:00]} Nf6 {[%clk
01:27:14]} {[%emt 00:02:50]} 4. Nc3 {[%clk 01:28:22]} {[%emt 00:01:56]} O-O
{[%clk 01:21:13]} {[%emt 00:06:31]} 5. e4 {[%clk 01:27:32]} {[%emt 00:01:20]}
d6 {[%clk 01:20:59]} {[%emt 00:00:44]} 6. Be2 {[%clk 01:25:57]} {[%emt
00:02:05]} Nbd7 {[%clk 01:15:45]} {[%emt 00:05:44]} 7. d5 {[%clk 01:21:22]}
{[%emt 00:05:06]} Ne5 {[%clk 01:11:51]} {[%emt 00:04:23]} 8. Nxe5 {[%clk
01:20:05]} {[%emt 00:01:47]} dxe5 {[%clk 01:12:19]} {[%emt 00:00:01]} 9. Be3
{[%clk 01:19:20]} {[%emt 00:01:16]} h6 {[%clk 01:10:55]} {[%emt 00:01:54]} 10.
O-O {[%clk 01:18:15]} {[%emt 00:01:35]} b6 {[%clk 01:06:53]} {[%emt 00:04:32]}
11. Rc1 {[%clk 01:04:46]} {[%emt 00:13:59]} e6 {[%clk 01:02:53]} {[%emt
00:04:30]} 12. Qc2 {[%clk 00:59:09]} {[%emt 00:06:06]} exd5 {[%clk 00:50:49]}
{[%emt 00:12:34]} 13. cxd5 {[%clk 00:59:09]} {[%emt 00:00:31]} Ng4 {[%clk
00:50:14]} {[%emt 00:01:05]} 14. Bxg4 {[%clk 00:55:58]} {[%emt 00:03:41]} Bxg4
{[%clk 00:50:42]} {[%emt 00:00:02]} 15. Nb5 {[%clk 00:56:07]} {[%emt 00:00:21]}
f6 {[%clk 00:41:07]} {[%emt 00:10:05]} 16. f3 {[%clk 00:53:23]} {[%emt
00:03:13]} Bd7 {[%clk 00:41:27]} {[%emt 00:00:10]} 17. Nxc7 {[%clk 00:52:27]}
{[%emt 00:01:27]} Rc8 {[%clk 00:41:46]} {[%emt 00:00:11]} 18. Qb3 {[%clk
00:47:09]} {[%emt 00:05:49]} Kh7 {[%clk 00:41:14]} {[%emt 00:01:02]} 19. d6
{[%clk 00:45:05]} {[%emt 00:02:33]} f5 {[%clk 00:39:49]} {[%emt 00:01:55]} 20.
Qd5 {[%clk 00:39:38]} {[%emt 00:05:57]} Qf6 {[%clk 00:37:07]} {[%emt 00:03:11]}
21. Rcd1 {[%clk 00:37:22]} {[%emt 00:02:46]} Rfd8 {[%clk 00:36:03]} {[%emt
00:01:34]} 22. Qb7 {[%clk 00:36:56]} {[%emt 00:00:56]} Bf8 {[%clk 00:27:36]}
{[%emt 00:08:58]} 23. Qxa7 {[%clk 00:35:30]} {[%emt 00:01:56]} Bxd6 {[%clk
00:27:56]} {[%emt 00:00:10]} 24. Qxb6 {[%clk 00:24:45]} {[%emt 00:11:14]} Ba4
{[%clk 00:27:15]} {[%emt 00:01:11]} 25. Nd5 {[%clk 00:24:32]} {[%emt 00:00:44]}
Qh4 {[%clk 00:26:24]} {[%emt 00:01:22]} 26. Qa7+ {[%clk 00:23:32]} {[%emt
00:01:29]} Bd7 {[%clk 00:26:38]} {[%emt 00:00:16]} 27. g3 {[%clk 00:22:59]}
{[%emt 00:01:03]} Qh3 {[%clk 00:25:20]} {[%emt 00:01:47]} 28. Nf6+ {[%clk
00:22:25]} {[%emt 00:01:05]} Kh8 {[%clk 00:25:16]} {[%emt 00:00:34]} 29. Rxd6
{[%clk 00:22:07]} {[%emt 00:00:47]} Rc2 {[%clk 00:24:40]} {[%emt 00:01:06]} 30.
Rd2 {[%clk 00:21:44]} {[%emt 00:00:54]} Rxd2 {[%clk 00:24:19]} {[%emt
00:00:51]} 31. Bxd2 {[%clk 00:22:10]} {[%emt 00:00:04]} f4 {[%clk 00:24:21]}
{[%emt 00:00:28]} 32. Qc7 {[%clk 00:20:18]} {[%emt 00:02:22]} Rf8 {[%clk
00:19:17]} {[%emt 00:05:33]} 33. Qxd7 {[%clk 00:20:34]} {[%emt 00:00:14]} Qxd7
{[%clk 00:19:41]} {[%emt 00:00:07]} 34. Nxd7 {[%emt 00:00:53]} 1-0

[Event "TOP 12 FEMININ 2022 - Phase 1"]
[Site "MULHOUSE, France"]
[Date "2022.04.08"]
[Round "2.4"]
[White "FORTUIT  JUV, Emilie"]
[Black "LECONTE  MON, Maria"]
[Result "1/2-1/2"]
[TimeControl "90 min +30 secondes par coup"]
[WhiteElo "1954"]
[BlackElo "2240"]

1. e4 {[%clk 01:30:57]} {[%emt 00:00:02]} c6 {[%clk 01:29:40]} {[%emt
00:01:21]} 2. d4 {[%clk 01:31:05]} {[%emt 00:00:22]} d5 {[%clk 01:30:02]}
{[%emt 00:00:08]} 3. exd5 {[%clk 01:31:08]} {[%emt 00:00:27]} cxd5 {[%clk
01:30:27]} {[%emt 00:00:05]} 4. Bd3 {[%clk 01:31:18]} {[%emt 00:00:20]} Nc6
{[%clk 01:30:51]} {[%emt 00:00:06]} 5. c3 {[%clk 01:31:19]} {[%emt 00:00:29]}
g6 {[%clk 01:31:07]} {[%emt 00:00:14]} 6. Nf3 {[%clk 01:30:58]} {[%emt
00:00:52]} Qc7 {[%clk 01:28:56]} {[%emt 00:02:40]} 7. O-O {[%clk 01:29:11]}
{[%emt 00:02:17]} Bf5 {[%clk 01:28:53]} {[%emt 00:00:32]} 8. Re1 {[%clk
01:27:56]} {[%emt 00:01:46]} Bxd3 {[%clk 01:19:52]} {[%emt 00:09:31]} 9. Qxd3
{[%clk 01:28:19]} {[%emt 00:00:07]} Bg7 {[%clk 01:19:56]} {[%emt 00:00:26]} 10.
Nbd2 {[%clk 01:26:28]} {[%emt 00:02:20]} Nf6 {[%clk 01:18:06]} {[%emt
00:02:21]} 11. h3 {[%clk 01:22:06]} {[%emt 00:04:51]} O-O {[%clk 01:16:15]}
{[%emt 00:02:22]} 12. Ne5 {[%clk 01:19:41]} {[%emt 00:02:55]} e6 {[%clk
01:03:31]} {[%emt 00:13:14]} 13. Ndf3 {[%clk 01:06:41]} {[%emt 00:13:30]} Ne4
{[%clk 01:02:55]} {[%emt 00:01:05]} 14. Nxc6 {[%clk 01:02:55]} {[%emt
00:04:17]} bxc6 {[%clk 00:55:16]} {[%emt 00:08:08]} 15. Ng5 {[%clk 00:56:27]}
{[%emt 00:06:57]} Nf6 {[%clk 00:41:03]} {[%emt 00:14:44]} 16. b3 {[%clk
00:49:33]} {[%emt 00:07:25]} c5 {[%clk 00:32:22]} {[%emt 00:09:11]} 17. Ba3
{[%clk 00:46:10]} {[%emt 00:03:53]} Nd7 {[%clk 00:32:46]} {[%emt 00:00:05]} 18.
Qa6 {[%clk 00:41:57]} {[%emt 00:04:43]} Qb6 {[%clk 00:29:15]} {[%emt 00:04:01]}
19. Qa4 {[%clk 00:38:56]} {[%emt 00:03:31]} Rfd8 {[%clk 00:29:07]} {[%emt
00:00:39]} 20. Nf3 {[%clk 00:35:15]} {[%emt 00:04:10]} Rac8 {[%clk 00:28:05]}
{[%emt 00:01:32]} 21. Rac1 {[%clk 00:34:44]} {[%emt 00:01:01]} Qb7 {[%clk
00:26:26]} {[%emt 00:02:09]} 22. Ne5 {[%clk 00:24:08]} {[%emt 00:11:06]} Nxe5
{[%clk 00:19:43]} {[%emt 00:07:13]} 23. dxe5 {[%clk 00:24:21]} {[%emt
00:00:16]} d4 {[%clk 00:20:08]} {[%emt 00:00:05]} 24. cxd4 {[%clk 00:21:48]}
{[%emt 00:03:04]} Rxd4 {[%clk 00:19:26]} {[%emt 00:01:13]} 25. Qa5 {[%clk
00:21:18]} {[%emt 00:01:00]} Rd5 {[%clk 00:17:48]} {[%emt 00:02:07]} 26. Rcd1
{[%clk 00:17:44]} {[%emt 00:04:04]} Bxe5 {[%clk 00:15:11]} {[%emt 00:03:08]} 27.
Rxd5 {[%clk 00:16:59]} {[%emt 00:01:15]} Qxd5 {[%clk 00:15:33]} {[%emt
00:00:08]} 28. Qxa7 {[%clk 00:16:29]} {[%emt 00:00:59]} Bd4 {[%clk 00:15:42]}
{[%emt 00:00:21]} 29. Qe7 {[%clk 00:15:16]} {[%emt 00:01:43]} Kg7 {[%clk
00:12:25]} {[%emt 00:03:46]} 30. Re2 {[%clk 00:11:38]} {[%emt 00:04:08]} Bf6
{[%clk 00:12:16]} {[%emt 00:00:40]} 31. Bb2 {[%clk 00:11:11]} {[%emt 00:00:58]}
Bxb2 {[%clk 00:06:25]} {[%emt 00:06:20]} 32. Rxb2 {[%clk 00:11:28]} {[%emt
00:00:13]} Ra8 {[%clk 00:05:33]} {[%emt 00:01:22]} 33. Qh4 {[%clk 00:10:05]}
{[%emt 00:01:53]} Qd1+ {[%clk 00:03:27]} {[%emt 00:02:36]} 34. Kh2 {[%clk
00:10:27]} {[%emt 00:00:07]} Qd6+ {[%clk 00:03:21]} {[%emt 00:00:37]} 35. Qg3
{[%clk 00:10:24]} {[%emt 00:00:33]} Qd4 {[%clk 00:02:54]} {[%emt 00:00:57]} 36.
Re2 {[%clk 00:10:24]} {[%emt 00:00:29]} h5 {[%clk 00:02:43]} {[%emt 00:00:41]}
37. Qe3 {[%clk 00:10:21]} {[%emt 00:00:34]} Qxe3 {[%clk 00:02:53]} {[%emt
00:00:20]} 38. fxe3 {[%clk 00:10:46]} {[%emt 00:00:05]} Kf6 {[%clk 00:03:16]}
{[%emt 00:00:07]} 39. Rc2 {[%clk 00:10:37]} {[%emt 00:00:39]} Ra5 {[%clk
00:03:06]} {[%emt 00:00:41]} 40. a4 {[%clk 00:09:45]} {[%emt 00:01:21]} Ke5
{[%clk 00:03:18]} {[%emt 00:00:18]} 41. Rc4 {[%clk 00:08:25]} {[%emt 00:01:50]}
g5 {[%clk 00:03:23]} {[%emt 00:00:24]} 42. Kg3 {[%clk 00:08:31]} {[%emt
00:00:24]} Kd5 {[%clk 00:02:04]} {[%emt 00:01:51]} 43. h4 {[%clk 00:08:20]}
{[%emt 00:00:40]} f6 {[%clk 00:02:12]} {[%emt 00:00:22]} 44. Kf3 {[%clk
00:07:27]} {[%emt 00:01:23]} g4+ {[%clk 00:02:02]} {[%emt 00:00:41]} 45. Kf4
{[%clk 00:07:39]} {[%emt 00:00:17]} Ra8 {[%clk 00:02:17]} {[%emt 00:00:15]} 46.
Rc3 {[%clk 00:06:50]} {[%emt 00:01:19]} Rb8 {[%clk 00:02:26]} {[%emt 00:00:22]}
47. Rd3+ {[%clk 00:06:27]} {[%emt 00:00:52]} Kc6 {[%clk 00:02:54]} {[%emt
00:00:02]} 48. e4 {[%clk 00:06:01]} {[%emt 00:00:56]} Rb4 {[%clk 00:03:10]}
{[%emt 00:00:14]} 49. Ke3 {[%clk 00:05:01]} {[%emt 00:01:30]} f5 {[%clk
00:02:39]} {[%emt 00:01:01]} 50. exf5 {[%clk 00:05:14]} {[%emt 00:00:17]} exf5
{[%clk 00:03:06]} {[%emt 00:00:03]} 51. g3 {[%clk 00:04:50]} {[%emt 00:00:54]}
Re4+ {[%clk 00:01:46]} {[%emt 00:01:50]} 52. Kf2 {[%clk 00:03:55]} {[%emt
00:01:25]} Rb4 {[%clk 00:01:25]} {[%emt 00:00:52]} 53. Ke3 {[%clk 00:04:03]}
{[%emt 00:00:22]} Re4+ {[%clk 00:01:36]} {[%emt 00:00:19]} 54. Kf2 {[%clk
00:04:13]} {[%emt 00:00:19]} Re5 {[%clk 00:01:44]} {[%emt 00:00:22]} 55. Re3
{[%clk 00:03:08]} {[%emt 00:01:35]} Rd5 {[%clk 00:02:01]} {[%emt 00:00:13]} 56.
Re6+ {[%clk 00:03:17]} {[%emt 00:00:21]} Kd7 {[%clk 00:02:05]} {[%emt
00:00:26]} 1/2-1/2